[Event "Championnat d'Europe Rapide"]
[Date "2024.12.08"]
[White "Georgiev, Kiril"]
[Black "Safarli, Eltaj"]
[WhiteElo "2537"]
[BlackElo "2610"]
[Round "7.3"]
[Result "1/2-1/2"]
[TimeControl "900+10"]

1. Nf3 {[%emt 00:00:19]} d5 {[%clk 00:15:12]} 2. d4 {[%emt 00:00:22] [%clk
00:14:56]} Nf6 {[%emt 00:00:04] [%clk 00:15:18]} 3. c4 {[%emt 00:00:05] [%clk
00:15:01]} e6 {[%emt 00:00:07] [%clk 00:15:22]} 4. g3 {[%emt 00:00:07] [%clk
00:15:03]} Be7 {[%emt 00:00:09] [%clk 00:15:24]} 5. Bg2 {[%emt 00:00:02] [%clk
00:15:10]} O-O {[%emt 00:00:03] [%clk 00:15:31]} 6. O-O {[%emt 00:00:22] [%clk
00:14:57]} dxc4 {[%emt 00:00:03] [%clk 00:15:39]} 7. Ne5 {[%emt 00:00:14] [%clk
00:14:53]} Nd5 {[%emt 00:00:24] [%clk 00:15:25]} 8. Nxc4 {[%emt 00:00:43] [%clk
00:14:20]} b5 {[%emt 00:00:02] [%clk 00:15:34]} 9. Ne5 {[%emt 00:00:20] [%clk
00:14:10]} Bb7 {[%emt 00:00:12] [%clk 00:15:32]} 10. a4 {[%emt 00:00:51] [%clk
00:13:29]} bxa4 {[%emt 00:00:27] [%clk 00:15:14]} 11. Rxa4 {[%emt 00:00:49]
[%clk 00:12:49]} Nd7 {[%emt 00:00:44] [%clk 00:14:42]} 12. Qb3 {[%emt 00:02:11]
[%clk 00:10:45]} N7b6 {[%emt 00:00:39] [%clk 00:14:16]} 13. Ra5 {[%emt 00:00:58]
[%clk 00:09:56]} Bf6 {[%emt 00:04:41] [%clk 00:09:46]} 14. Nd2 {[%emt 00:01:53]
[%clk 00:08:12]} c5 {[%emt 00:02:27] [%clk 00:07:31]} 15. Rxc5 {[%emt 00:00:30]
[%clk 00:07:50]} Bxe5 {[%emt 00:00:08] [%clk 00:07:33]} 16. dxe5 {[%emt
00:00:14] [%clk 00:07:47]} Ba6 {[%emt 00:00:08] [%clk 00:07:35]} 17. Re1 {[%emt
00:01:08] [%clk 00:06:48]} Nd7 {[%emt 00:00:10] [%clk 00:07:36]} 18. Rc6 {[%emt
00:00:26] [%clk 00:06:30]} Rb8 {[%emt 00:01:04] [%clk 00:06:44]} 19. Qa3 {[%emt
00:00:19] [%clk 00:06:17]} Nb4 {[%emt 00:00:32] [%clk 00:06:25]} 20. Rc3 {[%emt
00:02:31] [%clk 00:03:56]} Nxe5 {[%emt 00:00:03] [%clk 00:06:33]} 21. Ne4 {[%emt
00:00:22] [%clk 00:03:44]} Nc4 {[%emt 00:02:08] [%clk 00:04:35]} 22. Qa4 {[%emt
00:00:29] [%clk 00:03:23]} Qe7 {[%emt 00:00:06] [%clk 00:04:41]} 23. b3 {[%emt
00:00:29] [%clk 00:03:04]} Nb6 {[%emt 00:00:03] [%clk 00:04:48]} 24. Qa5 {[%emt
00:00:06] [%clk 00:03:01]} N6d5 {[%emt 00:00:55] [%clk 00:04:11]} 25. Rc5 {[%emt
00:00:39] [%clk 00:02:31]} Qd8 {[%emt 00:01:52] [%clk 00:02:29]} 26. Ba3 {[%emt
00:00:35] [%clk 00:02:05]} h6 {[%emt 00:01:34] [%clk 00:01:06]} 27. Bf3 {[%emt
00:00:45] [%clk 00:01:30]} Qxa5 {[%emt 00:00:52] [%clk 00:00:24]} 28. Rxa5
{[%emt 00:00:01] [%clk 00:01:38]} Rfc8 {[%emt 00:00:01] [%clk 00:00:33]} 29. Nc5
{[%emt 00:00:36] [%clk 00:01:12]} Nc2 {[%emt 00:00:10] [%clk 00:00:34]} 30. Nxa6
{[%emt 00:00:28] [%clk 00:00:53]} Nxe1 {[%emt 00:00:02] [%clk 00:00:43]} 31.
Bxd5 {[%emt 00:00:11] [%clk 00:00:52]} exd5 {[%emt 00:00:16] [%clk 00:00:37]}
32. Nxb8 {[%emt 00:00:03] [%clk 00:00:59]} Rxb8 {[%clk 00:00:47]} 33. b4 {[%emt
00:00:41] [%clk 00:00:28]} Nc2 {[%emt 00:00:02] [%clk 00:00:55]} 34. Rxa7 {[%emt
00:00:04] [%clk 00:00:34]} Nxa3 {[%emt 00:00:03] [%clk 00:01:03]} 35. Rxa3
{[%emt 00:00:01] [%clk 00:00:42]} Rxb4 {[%emt 00:00:01] [%clk 00:01:12]} 36.
Ra8+ {[%emt 00:00:03] [%clk 00:00:48]} Kh7 {[%emt 00:00:01] [%clk 00:01:21]} 37.
Rd8 {[%emt 00:00:02] [%clk 00:00:57]} Rb5 {[%emt 00:00:32] [%clk 00:00:59]} 38.
e3 {[%emt 00:00:03] [%clk 00:01:04]} Kg6 {[%emt 00:00:01] [%clk 00:01:07]} 39.
Rd7 {[%emt 00:00:04] [%clk 00:01:10]} Kf6 {[%emt 00:00:02] [%clk 00:01:16]} 40.
h4 {[%emt 00:00:08] [%clk 00:01:12]} Ke6 {[%emt 00:00:01] [%clk 00:01:25]} 41.
Ra7 {[%emt 00:00:01] [%clk 00:01:20]} Rb4 {[%emt 00:00:17] [%clk 00:01:19]}
1/2-1/2

[Site "Europe Echecs"]

[Event "Championnat d'Europe Rapide"]
[Date "2024.12.08"]
[White "Fedoseev, Vladimir"]
[Black "Saric, Ante"]
[WhiteElo "2709"]
[BlackElo "2482"]
[Round "7.4"]
[Result "1-0"]
[TimeControl "900+10"]

1. d4 {[%emt 00:00:11] [%clk 00:15:08]} Nf6 {[%emt 00:00:03] [%clk 00:15:18]} 2.
c4 {[%emt 00:00:02] [%clk 00:15:16]} e6 {[%emt 00:00:02] [%clk 00:15:27]} 3. Nf3
{[%emt 00:00:14] [%clk 00:15:11]} d5 {[%emt 00:00:08] [%clk 00:15:29]} 4. Nc3
{[%emt 00:00:18] [%clk 00:15:03]} c6 {[%emt 00:00:06] [%clk 00:15:34]} 5. cxd5
{[%emt 00:00:23] [%clk 00:14:49]} cxd5 {[%emt 00:00:35] [%clk 00:15:10]} 6. Bf4
{[%emt 00:00:38] [%clk 00:14:20]} Ne4 {[%emt 00:00:37] [%clk 00:14:44]} 7. e3
{[%emt 00:02:38] [%clk 00:11:52]} Nxc3 {[%emt 00:00:06] [%clk 00:14:47]} 8. bxc3
{[%emt 00:00:01] [%clk 00:12:01]} Nc6 {[%emt 00:00:30] [%clk 00:14:28]} 9. Bd3
{[%emt 00:00:06] [%clk 00:12:05]} Bd6 {[%emt 00:00:01] [%clk 00:14:37]} 10. Bg3
{[%emt 00:01:03] [%clk 00:11:11]} O-O {[%emt 00:00:26] [%clk 00:14:21]} 11. Qc2
{[%emt 00:00:22] [%clk 00:11:00]} h6 {[%emt 00:00:10] [%clk 00:14:21]} 12. Rb1
{[%emt 00:00:31] [%clk 00:10:39]} b6 {[%emt 00:00:07] [%clk 00:14:24]} 13. e4
{[%emt 00:02:54] [%clk 00:07:54]} dxe4 {[%emt 00:00:05] [%clk 00:14:29]} 14.
Bxe4 {[%emt 00:00:01] [%clk 00:08:03]} Bb7 {[%clk 00:14:38]} 15. O-O {[%emt
00:01:02] [%clk 00:07:11]} Bxg3 {[%emt 00:00:07] [%clk 00:14:41]} 16. hxg3
{[%emt 00:00:02] [%clk 00:07:19]} Qc7 {[%emt 00:00:11] [%clk 00:14:41]} 17. c4
{[%emt 00:00:31] [%clk 00:06:57]} Na5 {[%emt 00:00:29] [%clk 00:14:22]} 18. Rfc1
{[%emt 00:00:13] [%clk 00:06:54]} Rac8 {[%emt 00:00:10] [%clk 00:14:22]} 19. c5
{[%emt 00:00:30] [%clk 00:06:34]} bxc5 {[%emt 00:03:22] [%clk 00:11:11]} 20.
dxc5 {[%emt 00:00:01] [%clk 00:06:43]} Bxe4 {[%emt 00:00:03] [%clk 00:11:18]}
21. Qxe4 {[%clk 00:06:52]} Nc6 {[%clk 00:11:27]} 22. g4 {[%emt 00:00:01] [%clk
00:07:01]} Qe7 {[%emt 00:01:10] [%clk 00:10:27]} 23. Qe3 {[%emt 00:00:01] [%clk
00:07:10]} Rfd8 {[%emt 00:01:06] [%clk 00:09:31]} 24. g5 {[%emt 00:00:01] [%clk
00:07:19]} hxg5 {[%emt 00:00:50] [%clk 00:08:51]} 25. Nxg5 {[%emt 00:00:03]
[%clk 00:07:25]} Nd4 {[%emt 00:00:10] [%clk 00:08:52]} 26. Ne4 {[%emt 00:00:25]
[%clk 00:07:10]} Nf5 {[%emt 00:00:06] [%clk 00:08:56]} 27. Qf4 {[%emt 00:00:43]
[%clk 00:06:36]} Qc7 {[%emt 00:01:20] [%clk 00:07:46]} 28. Qg5 {[%emt 00:00:52]
[%clk 00:05:54]} Qc6 {[%emt 00:02:01] [%clk 00:05:56]} 29. Rc4 {[%emt 00:01:52]
[%clk 00:04:12]} Rd4 {[%emt 00:01:27] [%clk 00:04:39]} 30. Rxd4 {[%emt 00:00:14]
[%clk 00:04:08]} Nxd4 {[%emt 00:00:02] [%clk 00:04:48]} 31. Re1 {[%emt 00:00:19]
[%clk 00:03:58]} Kf8 {[%emt 00:01:11] [%clk 00:03:48]} 32. Qh5 {[%clk 00:04:07]}
Nf5 {[%emt 00:00:25] [%clk 00:03:33]} 33. g4 {[%emt 00:00:32] [%clk 00:03:45]}
Nh6 {[%emt 00:00:52] [%clk 00:02:51]} 34. g5 {[%emt 00:00:14] [%clk 00:03:41]}
Qd5 {[%emt 00:00:31] [%clk 00:02:30]} 35. Nf6 {[%emt 00:00:44] [%clk 00:03:07]}
Qf5 {[%emt 00:00:34] [%clk 00:02:07]} 36. gxh6 {[%emt 00:01:22] [%clk 00:01:55]}
gxf6 {[%clk 00:02:16]} 37. Qxf5 {[%emt 00:00:02] [%clk 00:02:02]} exf5 {[%emt
00:00:01] [%clk 00:02:26]} 38. c6 {[%emt 00:00:20] [%clk 00:01:52]} Kg8 {[%emt
00:00:27] [%clk 00:02:09]} 39. Rc1 {[%clk 00:02:01]} Kh7 {[%emt 00:00:06] [%clk
00:02:14]} 40. Kg2 {[%clk 00:02:11]} Kxh6 {[%emt 00:00:04] [%clk 00:02:20]} 41.
Kf3 {[%clk 00:02:20]} Rc7 {[%emt 00:01:42] [%clk 00:00:48]} 42. Kf4 {[%emt
00:00:03] [%clk 00:02:27]} Kg6 {[%emt 00:00:03] [%clk 00:00:56]} 43. a4 {[%emt
00:00:07] [%clk 00:02:30]} a5 {[%emt 00:00:03] [%clk 00:01:02]} 44. f3 {[%emt
00:00:10] [%clk 00:02:30]} Kg7 {[%emt 00:00:36] [%clk 00:00:36]} 45. Kxf5 {[%emt
00:00:02] [%clk 00:02:38]} Kf8 {[%emt 00:00:01] [%clk 00:00:46]} 46. Kxf6 {[%emt
00:00:03] [%clk 00:02:45]} Ke8 {[%emt 00:00:01] [%clk 00:00:55]} 47. f4 {[%emt
00:00:10] [%clk 00:02:44]} Kd8 {[%emt 00:00:01] [%clk 00:01:05]} 48. f5 {[%emt
00:00:06] [%clk 00:02:47]} Kc8 {[%emt 00:00:13] [%clk 00:01:02]} 49. Rc5 {[%emt
00:00:07] [%clk 00:02:50]} 1-0

[Site "Europe Echecs"]

[Event "Championnat d'Europe Rapide"]
[Date "2024.12.08"]
[White "Kozul, Zdenko"]
[Black "Pultinevicius, Paulius"]
[WhiteElo "2519"]
[BlackElo "2579"]
[Round "7.6"]
[Result "0-1"]
[TimeControl "900+10"]

1. d4 {[%emt 00:00:04] [%clk 00:15:18]} Nf6 {[%clk 00:15:19]} 2. c4 {[%emt
00:00:02] [%clk 00:15:25]} e6 {[%emt 00:00:02] [%clk 00:15:28]} 3. Nf3 {[%emt
00:00:06] [%clk 00:15:28]} d5 {[%emt 00:00:02] [%clk 00:15:37]} 4. g3 {[%emt
00:00:04] [%clk 00:15:34]} dxc4 {[%emt 00:00:03] [%clk 00:15:45]} 5. Bg2 {[%emt
00:00:02] [%clk 00:15:41]} Nbd7 {[%emt 00:00:02] [%clk 00:15:53]} 6. O-O {[%emt
00:00:35] [%clk 00:15:15]} c6 {[%emt 00:00:03] [%clk 00:16:01]} 7. a4 {[%emt
00:00:30] [%clk 00:14:55]} b6 {[%emt 00:00:02] [%clk 00:16:09]} 8. Qc2 {[%emt
00:00:32] [%clk 00:14:33]} Ba6 {[%emt 00:00:36] [%clk 00:15:43]} 9. Rd1 {[%emt
00:00:02] [%clk 00:14:40]} Nd5 {[%emt 00:00:33] [%clk 00:15:21]} 10. Bg5 {[%emt
00:01:11] [%clk 00:13:39]} Be7 {[%emt 00:00:54] [%clk 00:14:38]} 11. Bxe7 {[%emt
00:00:03] [%clk 00:13:45]} Qxe7 {[%emt 00:00:02] [%clk 00:14:47]} 12. Na3 {[%emt
00:00:27] [%clk 00:13:27]} Rc8 {[%emt 00:00:18] [%clk 00:14:40]} 13. Nxc4 {[%emt
00:00:13] [%clk 00:13:23]} c5 {[%emt 00:00:03] [%clk 00:14:47]} 14. b3 {[%emt
00:00:04] [%clk 00:13:29]} O-O {[%emt 00:00:41] [%clk 00:14:16]} 15. Qb2 {[%emt
00:01:40] [%clk 00:11:59]} Rfd8 {[%emt 00:03:24] [%clk 00:11:03]} 16. e4 {[%emt
00:01:48] [%clk 00:10:20]} N5f6 {[%emt 00:00:11] [%clk 00:11:02]} 17. e5 {[%emt
00:01:04] [%clk 00:09:26]} Ne8 {[%emt 00:01:01] [%clk 00:10:11]} 18. d5 {[%emt
00:01:23] [%clk 00:08:13]} exd5 {[%emt 00:00:03] [%clk 00:10:19]} 19. Rxd5
{[%clk 00:08:22]} Nf8 {[%emt 00:00:12] [%clk 00:10:16]} 20. Nh4 {[%emt 00:01:18]
[%clk 00:07:14]} Rxd5 {[%emt 00:02:06] [%clk 00:08:20]} 21. Bxd5 {[%emt
00:00:02] [%clk 00:07:22]} Rd8 {[%emt 00:00:35] [%clk 00:07:55]} 22. Rd1 {[%emt
00:00:40] [%clk 00:06:51]} g6 {[%emt 00:00:54] [%clk 00:07:12]} 23. Qc1 {[%emt
00:00:21] [%clk 00:06:40]} Nc7 {[%emt 00:00:41] [%clk 00:06:41]} 24. Ne3 {[%emt
00:00:30] [%clk 00:06:19]} Nfe6 {[%emt 00:01:45] [%clk 00:05:06]} 25. Nf3 {[%emt
00:01:21] [%clk 00:05:09]} Be2 {[%emt 00:00:29] [%clk 00:04:48]} 26. Re1 {[%emt
00:00:22] [%clk 00:04:56]} Bxf3 {[%emt 00:00:39] [%clk 00:04:19]} 27. Bxf3
{[%emt 00:00:03] [%clk 00:05:04]} Nd4 {[%emt 00:00:04] [%clk 00:04:25]} 28. Bg4
{[%emt 00:03:08] [%clk 00:02:05]} h5 {[%emt 00:00:23] [%clk 00:04:12]} 29. Bd1
{[%emt 00:00:16] [%clk 00:01:59]} Qxe5 {[%emt 00:00:02] [%clk 00:04:21]} 30. Ng2
{[%emt 00:00:28] [%clk 00:01:40]} Qf6 {[%emt 00:00:11] [%clk 00:04:19]} 31. Qh6
{[%emt 00:00:12] [%clk 00:01:39]} Nce6 {[%emt 00:00:15] [%clk 00:04:15]} 32. Qe3
{[%emt 00:00:28] [%clk 00:01:20]} Qg5 {[%emt 00:00:34] [%clk 00:03:51]} 33. f4
{[%emt 00:00:15] [%clk 00:01:15]} Qd5 {[%emt 00:00:11] [%clk 00:03:49]} 34. Nh4
{[%emt 00:00:09] [%clk 00:01:16]} Ng7 {[%emt 00:00:24] [%clk 00:03:36]} 35. Qe7
{[%emt 00:00:17] [%clk 00:01:09]} Re8 {[%emt 00:00:15] [%clk 00:03:31]} 36.
Qxe8+ {[%emt 00:00:13] [%clk 00:01:06]} Nxe8 {[%emt 00:00:01] [%clk 00:03:40]}
37. Rxe8+ {[%emt 00:00:02] [%clk 00:01:14]} Kg7 {[%emt 00:00:01] [%clk
00:03:49]} 38. Re5 {[%emt 00:00:09] [%clk 00:01:15]} Qd6 {[%emt 00:00:04] [%clk
00:03:55]} 39. Re1 {[%emt 00:00:13] [%clk 00:01:12]} Nxb3 {[%emt 00:01:03] [%clk
00:03:02]} 40. Bxh5 {[%emt 00:00:43] [%clk 00:00:38]} c4 {[%emt 00:00:15] [%clk
00:02:59]} 41. Bd1 {[%emt 00:00:12] [%clk 00:00:35]} Qc5+ {[%emt 00:00:12] [%clk
00:02:57]} 42. Kg2 {[%emt 00:00:05] [%clk 00:00:40]} Nd4 {[%emt 00:00:02] [%clk
00:03:05]} 43. Nf3 {[%emt 00:00:22] [%clk 00:00:27]} c3 {[%emt 00:00:17] [%clk
00:02:59]} 0-1

[Site "Europe Echecs"]

[Event "Championnat d'Europe Rapide"]
[Date "2024.12.08"]
[White "Sargissian, Gabriel"]
[Black "Kazakouski, Valery"]
[WhiteElo "2628"]
[BlackElo "2567"]
[Round "7.7"]
[Result "1-0"]
[TimeControl "900+10"]

1. Nf3 {[%emt 00:00:03] [%clk 00:15:16]} d5 {[%emt 00:01:27] [%clk 00:13:54]} 2.
g3 {[%emt 00:00:02] [%clk 00:15:23]} Nf6 {[%emt 00:00:03] [%clk 00:14:02]} 3.
Bg2 {[%emt 00:00:02] [%clk 00:15:30]} c6 {[%emt 00:00:03] [%clk 00:14:10]} 4.
O-O {[%emt 00:00:06] [%clk 00:15:33]} Bg4 {[%emt 00:00:04] [%clk 00:14:16]} 5.
h3 {[%emt 00:00:14] [%clk 00:15:28]} Bh5 {[%emt 00:00:02] [%clk 00:14:24]} 6. c4
{[%emt 00:00:34] [%clk 00:15:05]} e6 {[%emt 00:00:01] [%clk 00:14:32]} 7. d4
{[%emt 00:01:34] [%clk 00:13:41]} Bxf3 {[%emt 00:00:58] [%clk 00:13:45]} 8. Bxf3
{[%emt 00:00:09] [%clk 00:13:41]} Be7 {[%emt 00:00:03] [%clk 00:13:53]} 9. Qb3
{[%emt 00:00:40] [%clk 00:13:11]} Qb6 {[%emt 00:00:26] [%clk 00:13:37]} 10. Nc3
{[%emt 00:00:34] [%clk 00:12:47]} Nbd7 {[%emt 00:00:19] [%clk 00:13:28]} 11. Rd1
{[%emt 00:00:23] [%clk 00:12:33]} O-O {[%emt 00:00:13] [%clk 00:13:26]} 12. Bf4
{[%emt 00:03:37] [%clk 00:09:06]} Qa6 {[%emt 00:00:14] [%clk 00:13:22]} 13. cxd5
{[%emt 00:00:39] [%clk 00:08:37]} exd5 {[%emt 00:00:04] [%clk 00:13:27]} 14. e3
{[%emt 00:00:54] [%clk 00:07:53]} Rfe8 {[%emt 00:00:23] [%clk 00:13:14]} 15. Bc7
{[%emt 00:00:43] [%clk 00:07:20]} Rac8 {[%emt 00:01:46] [%clk 00:11:38]} 16. Be2
{[%emt 00:00:14] [%clk 00:07:16]} b5 {[%emt 00:00:02] [%clk 00:11:47]} 17. Bf4
{[%emt 00:00:03] [%clk 00:07:22]} Qa5 {[%emt 00:00:03] [%clk 00:11:55]} 18. Bf3
{[%emt 00:00:34] [%clk 00:06:57]} h6 {[%emt 00:00:20] [%clk 00:11:45]} 19. h4
{[%emt 00:00:12] [%clk 00:06:56]} Nf8 {[%emt 00:00:05] [%clk 00:11:50]} 20. Rac1
{[%emt 00:01:13] [%clk 00:05:53]} Ne6 {[%emt 00:00:05] [%clk 00:11:53]} 21. Ne2
{[%emt 00:01:46] [%clk 00:04:19]} Bf8 {[%emt 00:02:46] [%clk 00:09:16]} 22. a3
{[%emt 00:00:49] [%clk 00:03:41]} Nd7 {[%emt 00:01:14] [%clk 00:08:12]} 23. h5
{[%emt 00:00:17] [%clk 00:03:34]} Nb6 {[%emt 00:00:20] [%clk 00:08:02]} 24. Qd3
{[%emt 00:00:13] [%clk 00:03:31]} Nc4 {[%emt 00:00:29] [%clk 00:07:43]} 25. Rc2
{[%emt 00:00:31] [%clk 00:03:10]} Qb6 {[%emt 00:00:43] [%clk 00:07:09]} 26. Qf5
{[%emt 00:00:14] [%clk 00:03:06]} a5 {[%emt 00:00:28] [%clk 00:06:52]} 27. Nc1
{[%emt 00:00:06] [%clk 00:03:10]} Nxf4 {[%emt 00:00:06] [%clk 00:06:56]} 28.
gxf4 {[%emt 00:00:22] [%clk 00:02:58]} Rcd8 {[%emt 00:00:33] [%clk 00:06:33]}
29. Re2 {[%emt 00:00:19] [%clk 00:02:48]} Nd6 {[%emt 00:01:36] [%clk 00:05:07]}
30. Qh3 {[%emt 00:00:17] [%clk 00:02:41]} Ne4 {[%emt 00:00:16] [%clk 00:05:01]}
31. Nd3 {[%emt 00:00:12] [%clk 00:02:38]} c5 {[%emt 00:00:14] [%clk 00:04:58]}
32. dxc5 {[%emt 00:00:06] [%clk 00:02:42]} Bxc5 {[%emt 00:00:11] [%clk
00:04:57]} 33. Nxc5 {[%emt 00:00:09] [%clk 00:02:43]} Qxc5 {[%emt 00:00:09]
[%clk 00:04:59]} 34. Qf5 {[%emt 00:00:17] [%clk 00:02:35]} Qc4 {[%emt 00:01:43]
[%clk 00:03:26]} 35. Kg2 {[%emt 00:00:02] [%clk 00:02:42]} Nf6 {[%emt 00:02:06]
[%clk 00:01:30]} 36. Rd4 {[%emt 00:00:06] [%clk 00:02:46]} Qc8 {[%emt 00:00:02]
[%clk 00:01:39]} 37. Qxc8 {[%emt 00:00:17] [%clk 00:02:39]} Rxc8 {[%emt
00:00:01] [%clk 00:01:48]} 38. Bxd5 {[%emt 00:00:14] [%clk 00:02:34]} Nxh5
{[%emt 00:00:06] [%clk 00:01:52]} 39. Bf3 {[%emt 00:00:21] [%clk 00:02:23]} Nf6
{[%emt 00:00:04] [%clk 00:01:58]} 40. Red2 {[%emt 00:00:11] [%clk 00:02:23]} g5
{[%emt 00:00:29] [%clk 00:01:39]} 41. Rd6 {[%emt 00:00:27] [%clk 00:02:06]} Kg7
{[%clk 00:01:48]} 42. fxg5 {[%emt 00:00:51] [%clk 00:01:25]} hxg5 {[%emt
00:00:01] [%clk 00:01:58]} 43. Rb6 {[%emt 00:00:01] [%clk 00:01:33]} g4 {[%emt
00:00:54] [%clk 00:01:13]} 44. Bb7 {[%emt 00:00:30] [%clk 00:01:13]} Rc5 {[%emt
00:00:11] [%clk 00:01:12]} 45. b4 {[%emt 00:00:46] [%clk 00:00:38]} axb4 {[%emt
00:00:01] [%clk 00:01:20]} 46. axb4 {[%clk 00:00:47]} Rf5 {[%emt 00:00:10] [%clk
00:01:20]} 47. Rc2 {[%emt 00:00:14] [%clk 00:00:44]} Rb8 {[%emt 00:00:37] [%clk
00:00:52]} 48. Rc8 {[%emt 00:00:23] [%clk 00:00:31]} Rxc8 {[%emt 00:00:26] [%clk
00:00:37]} 49. Bxc8 {[%emt 00:00:01] [%clk 00:00:40]} Rd5 {[%emt 00:00:02] [%clk
00:00:45]} 50. Bb7 {[%emt 00:00:05] [%clk 00:00:45]} Rd2 {[%emt 00:00:37] [%clk
00:00:18]} 51. Rxb5 {[%emt 00:00:05] [%clk 00:00:50]} Rb2 {[%clk 00:00:27]} 52.
Kg3 {[%emt 00:00:26] [%clk 00:00:34]} Rb1 {[%emt 00:00:05] [%clk 00:00:32]} 53.
Kg2 {[%emt 00:00:09] [%clk 00:00:34]} Rb2 {[%emt 00:00:03] [%clk 00:00:39]} 54.
Bc6 {[%emt 00:00:03] [%clk 00:00:41]} Kg6 {[%emt 00:00:07] [%clk 00:00:43]} 55.
Ba8 {[%emt 00:00:13] [%clk 00:00:37]} Nh5 {[%emt 00:00:21] [%clk 00:00:32]} 56.
Be4+ {[%emt 00:00:05] [%clk 00:00:43]} Kh6 {[%clk 00:00:42]} 57. Kg1 {[%emt
00:00:31] [%clk 00:00:22]} g3 {[%emt 00:00:12] [%clk 00:00:40]} 58. fxg3 {[%emt
00:00:09] [%clk 00:00:23]} Nxg3 {[%emt 00:00:04] [%clk 00:00:46]} 59. Bf3 {[%emt
00:00:02] [%clk 00:00:31]} f5 {[%emt 00:00:38] [%clk 00:00:17]} 60. Rb8 {[%emt
00:00:06] [%clk 00:00:36]} Kg5 {[%emt 00:00:15] [%clk 00:00:13]} 61. b5 {[%emt
00:00:01] [%clk 00:00:44]} f4 {[%emt 00:00:02] [%clk 00:00:21]} 62. b6 {[%emt
00:00:15] [%clk 00:00:40]} Rb1+ {[%emt 00:00:15] [%clk 00:00:15]} 63. Kg2 {[%emt
00:00:01] [%clk 00:00:48]} Rb2+ {[%emt 00:00:02] [%clk 00:00:24]} 64. Kg1 {[%emt
00:00:19] [%clk 00:00:38]} Rb1+ {[%emt 00:00:01] [%clk 00:00:33]} 65. Kg2 {[%clk
00:00:47]} Rb2+ {[%emt 00:00:01] [%clk 00:00:42]} 66. Kh3 {[%emt 00:00:20] [%clk
00:00:37]} Nf1 {[%emt 00:00:34] [%clk 00:00:18]} 67. Rg8+ {[%emt 00:00:03] [%clk
00:00:43]} Kf5 {[%emt 00:00:05] [%clk 00:00:23]} 68. Rf8+ {[%emt 00:00:02] [%clk
00:00:51]} Ke6 {[%emt 00:00:18] [%clk 00:00:16]} 69. b7 {[%emt 00:00:05] [%clk
00:00:56]} Rh2+ {[%emt 00:00:13] [%clk 00:00:14]} 70. Kg4 {[%clk 00:01:04]} 1-0

[Site "Europe Echecs"]

[Event "Championnat d'Europe Rapide"]
[Date "2024.12.08"]
[White "Horvath, Dominik"]
[Black "Dardha, Daniel"]
[WhiteElo "2542"]
[BlackElo "2639"]
[Round "7.9"]
[Result "1/2-1/2"]
[TimeControl "900+10"]

1. Nf3 {[%clk 00:15:18]} d5 {[%emt 00:02:20] [%clk 00:13:01]} 2. g3 {[%emt
00:00:04] [%clk 00:15:24]} g6 {[%emt 00:00:09] [%clk 00:13:03]} 3. Bg2 {[%emt
00:00:02] [%clk 00:15:32]} Bg7 {[%emt 00:00:01] [%clk 00:13:11]} 4. d4 {[%emt
00:00:02] [%clk 00:15:41]} Nf6 {[%emt 00:00:08] [%clk 00:13:13]} 5. O-O {[%emt
00:00:02] [%clk 00:15:48]} c6 {[%emt 00:00:03] [%clk 00:13:20]} 6. c4 {[%emt
00:00:03] [%clk 00:15:55]} O-O {[%emt 00:00:13] [%clk 00:13:18]} 7. cxd5 {[%emt
00:00:04]} cxd5 {[%clk 00:13:25]} 8. Ne5 {[%emt 00:00:01] [%clk 00:16:11]} Ng4
{[%emt 00:00:22] [%clk 00:13:13]} 9. Nf3 {[%emt 00:00:01] [%clk 00:16:20]} Nf6
{[%emt 00:00:03] [%clk 00:13:21]} 10. Ne5 {[%emt 00:00:01] [%clk 00:16:28]} Ng4
{[%emt 00:00:01] [%clk 00:13:30]} 11. Nf3 {[%clk 00:16:38]} 1/2-1/2

[Site "Europe Echecs"]

[Event "Championnat d'Europe Rapide"]
[Date "2024.12.08"]
[White "Popovic, Milos T"]
[Black "Grigoriants, Sergey"]
[WhiteElo "2334"]
[BlackElo "2542"]
[Round "7.11"]
[Result "1/2-1/2"]
[TimeControl "900+10"]

1. d4 {[%emt 00:00:02] [%clk 00:15:18]} d5 {[%emt 00:00:03] [%clk 00:15:17]} 2.
Bf4 {[%emt 00:00:11] [%clk 00:15:16]} c5 {[%emt 00:00:35] [%clk 00:14:52]} 3. e3
{[%emt 00:00:44] [%clk 00:14:42]} Nc6 {[%emt 00:00:22] [%clk 00:14:41]} 4. c3
{[%emt 00:01:11] [%clk 00:13:41]} Nf6 {[%emt 00:00:31] [%clk 00:14:19]} 5. Nd2
{[%emt 00:00:41] [%clk 00:13:10]} Bg4 {[%emt 00:02:33] [%clk 00:11:56]} 6. Qb3
{[%emt 00:01:32] [%clk 00:11:48]} Qc8 {[%emt 00:00:02] [%clk 00:12:04]} 7. h3
{[%emt 00:00:07] [%clk 00:11:52]} Bf5 {[%emt 00:00:13] [%clk 00:12:01]} 8. Ngf3
{[%emt 00:00:01] [%clk 00:12:01]} e6 {[%emt 00:00:16] [%clk 00:11:55]} 9. Be2
{[%emt 00:00:04] [%clk 00:12:06]} h6 {[%emt 00:00:30] [%clk 00:11:35]} 10. O-O
{[%emt 00:00:02] [%clk 00:12:14]} Be7 {[%emt 00:00:11] [%clk 00:11:34]} 11. dxc5
{[%emt 00:01:36] [%clk 00:10:48]} Bxc5 {[%emt 00:00:15] [%clk 00:11:29]} 12. c4
{[%emt 00:00:03] [%clk 00:10:56]} O-O {[%emt 00:03:42] [%clk 00:07:56]} 1/2-1/2

[Site "Europe Echecs"]